Cogmind - Beta 9.6 @@@ ROGUE MODE // 2020.07.11 @ 18:59:54 Player: Lyft Result: Destroyed by as-42073 with Assembled Maul Performance ------------- Evolutions (0) 0 Regions Visited (4) 800 Robots Destroyed (26) 130 Value Destroyed (659) 659 Prototype IDs (0) 0 Alien Tech Used (0) 0 Bonus (178) 178 TOTAL SCORE: 1767 Bonus ------- Follower Combat Kills 185 Friendly Fire -7 Cogmind --------- Core Integrity 0/250 Matter 271/300 Energy 123/125 System Corruption 0% Temperature Cool (0) Movement Treading (180) Ox1 Location -9/Mines Parts ------- > --- POWER (1) -------- Light Ion Engine > --- PROPULSION (2) --- Light Treads Wheel > --- UTILITY (2) ------ Large Storage Unit Large Storage Unit > --- WEAPON (2) ------- Assault Rifle Light Assault Rifle > --- INVENTORY (16) --- Ion Engine Wheel Wheel Improved Heat Sink Medium Storage Unit Medium Matter Pod (100) Weight Redist. System Visual Processing Unit Improved Terrain Scanner Assault Rifle Light Assault Rifle Peak State ------------ > --- POWER ------------ Ion Engine > --- PROPULSION ------- Light Treads Wheel > --- UTILITY ---------- Large Storage Unit Makeshift Terrain Scan Processor > --- WEAPON ----------- Assault Rifle Assault Rifle > --- INVENTORY -------- Light Ion Engine Light Ion Engine Wheel Heat Sink Medium Matter Pod Weight Redist. System Visual Processing Unit Improved Terrain Scanner Light Assault Rifle [Rating: 11] Favorites ----------- Power Light Ion Engine Engine Light Ion Engine Propulsion Light Treads Treads Light Treads Leg Aluminum Leg Wheel Wheel Utility Large Storage Unit Device Tractor Beam Storage Large Storage Unit Processor Makeshift Terrain Scan Processor Protection Weapon Shielding Weapon Assault Rifle Ballistic Gun Assault Rifle Launcher Grenade Launcher Build | -11 -10 -10 -10 -9 ------- Run | Scr Mat Min Exi Min Slots Evolved . | . . . . . Power . | . . . . . Propulsion . | . . . . . Utility . | . . . . . Weapon . | . . . . . Parts Attached 26 | 3 6 10 7 . Power 4 | . . 3 1 . Engine 4 | . . 3 1 . Core . | . . . . . Reactor . | . . . . . Propulsion 6 | 2 2 2 . . Treads 3 | 1 1 1 . . Leg . | . . . . . Wheel 3 | 1 1 1 . . Hover . | . . . . . Flight . | . . . . . Utility 9 | 1 3 1 4 . Device 3 | 1 . . 2 . Storage 4 | . 2 1 1 . Processor 1 | . . . 1 . Hackware . | . . . . . Protection 1 | . 1 . . . Artifact . | . . . . . Weapon 7 | . 1 4 2 . Energy Gun . | . . . . . Energy Cannon . | . . . . . Ballistic Gun 6 | . 1 3 2 . Ballistic Cannon . | . . . . . Launcher 1 | . . 1 . . Special Weapon . | . . . . . Impact Weapon . | . . . . . Slashing Weapon . | . . . . . Piercing Weapon . | . . . . . Special Melee Weapon . | . . . . . Unidentified Prototypes . | . . . . . Parts Lost 7 | . . 7 . . Power 2 | . . 2 . . Propulsion 2 | . . 2 . . Utility . | . . . . . Weapon 3 | . . 3 . . Highest Loss Streak 4 | . . 4 . . Average Slot Usage (%) 99 | . 98 99 100 100 Engine 13 | . 14 13 14 14 Treads 14 | . 13 15 14 14 Wheel 13 | . 14 12 14 14 Storage 27 | . 24 28 27 28 Ballistic Gun 27 | . 27 27 28 28 Naked Turns . | . . . . . Heaviest Build 41 | 11 25 41 41 38 Greatest Support 40 | 10 20 40 20 20 Greatest Overweight (x) 2 | 1 2 2 2 1 Average Overweight (x) 1 | . 1 1 1 1 Largest Inventory Capacity 16 | 6 10 16 16 16 Average Capacity 13 | 6 8 12 15 16 Most Carried 16 | 6 10 14 16 11 Average Carried 10 | 6 6 10 12 11 Final Capacity 16 | 6 10 16 16 16 Final Carried 14 | 6 10 14 11 11 Class Distribution -------------------- 100% | Mutant Dominant Class ---------------- Mutant | -10/Materials Mutant | -10/Mines Mutant | -10/Exiles Mutant | -9/Mines Resources | -11 -10 -10 -10 -9 ----------- Run | Scr Mat Min Exi Min Matter Collected 863 | 242 101 411 109 . Remotely 10 | 10 . . . . Salvage Created 992 | 75 101 474 342 . Parts 67 | 1 13 36 17 . Haulers Intercepted . | . . . . . Recyclers Shooed . | . . . . . Parts Field Recycled . | . . . . . Retrieved Matter . | . . . . . Parts Self-Destructed . | . . . . . Prevented . | . . . . . Kills | -11 -10 -10 -10 -9 ------- Run | Scr Mat Min Exi Min Combat Hostiles Destroyed 21 | . 4 12 5 . Guns 21 | . 4 12 5 . Classes Destroyed 7 | 1 3 2 1 . Worker 1 | . . 1 . . Tunneler 2 | . . 2 . . Recycler 1 | 1 . . . . Watcher 1 | . 1 . . . Swarmer 6 | . 3 3 . . Grunt 13 | . 1 9 3 . Hunter 2 | . . . 2 . Best Kill Streak 6 | 1 4 6 2 . Combat Bots Only 3 | . 3 3 2 . Max Kills in Single Turn 2 | 1 1 2 1 . Gunslinging . | . . . . . Exploded . | . . . . . Melee . | . . . . . Uniques/NPCs Destroyed . | . . . . . Combat | -11 -10 -10 -10 -9 -------- Run | Scr Mat Min Exi Min Damage Taken 1065 | . 247 747 . 71 Core 254 | . 37 166 . 51 Absorbed by Shields . | . . . . . Core Remaining (%) 100 | 100 . . . . Volleys Fired 80 | 3 15 48 11 3 Largest 2 | 2 2 2 2 2 Hottest 40 | 40 40 40 40 40 Shots Fired 133 | 6 30 69 22 6 Gun 132 | 6 30 68 22 6 Cannon . | . . . . . Launcher 1 | . . 1 . . Special . | . . . . . Kinetic 132 | 6 30 68 22 6 Thermal . | . . . . . Explosive 1 | . . 1 . . Electromagnetic . | . . . . . Robot Hit Streak 8 | 5 6 8 7 2 Robot Miss Streak 4 | 1 4 3 2 3 Penetration Max . | . . . . . Secondary Targets 3 | . 1 2 . . Max Gunslinging Chain 1 | . 1 1 . . Shots Hit Robots 83 | 5 18 46 12 2 Core Hits 39 | 2 6 20 11 . Critical Hits . | . . . . . Critical Kills . | . . . . . Critical Parts Destroyed . | . . . . . Melee Attacks . | . . . . . Impact . | . . . . . Slashing . | . . . . . Piercing . | . . . . . Sneak Attacks . | . . . . . Combat Hostiles . | . . . . . Follow-up Attacks . | . . . . . Damage Inflicted 1050 | 44 196 646 149 15 Guns 1048 | 44 196 644 149 15 Cannons . | . . . . . Explosions . | . . . . . Melee . | . . . . . Ramming 2 | . . 2 . . Kinetic 1048 | 44 196 644 149 15 Thermal . | . . . . . Explosive . | . . . . . Electromagnetic . | . . . . . Impact . | . . . . . Slashing . | . . . . . Piercing . | . . . . . Highest Corruption . | . . . . . Average Corruption . | . . . . . Corruption Purged . | . . . . . Overload Shots . | . . . . . Overflow Damage 16 | . . 16 . . Projectiles . | . . . . . Explosions 16 | . . 16 . . Melee . | . . . . . Knockbacks . | . . . . . Impact . | . . . . . Kinetic . | . . . . . Secondary . | . . . . . Self-Inflicted Damage 31 | . . 31 . . Shots 1 | . . 1 . . Rammed 1 | . . 1 . . Targets Rammed 1 | . . 1 . . Kicked . | . . . . . Crushed . | . . . . . Highest Temperature 20 | . 6 2 . 20 Average Temperature 6 | . 6 2 . 20 Received Heat Transfer 404 | . 18 366 . 20 Siege Activations . | . . . . . Robots Corrupted . | . . . . . Combat Hostiles . | . . . . . Parts Fried . | . . . . . Impact Corruptions . | . . . . . Robots Melted . | . . . . . Combat Hostiles . | . . . . . Parts Melted . | . . . . . Heat Transferred . | . . . . . Parts Sabotaged . | . . . . . Parts Stolen . | . . . . . Parts Stripped . | . . . . . Power Chain Reactions . | . . . . . Missiles Intercepted . | . . . . . Alert | -11 -10 -10 -10 -9 ------- Run | Scr Mat Min Exi Min Peak Influence 251 | 5 92 251 . . Average Influence 60 | 3 53 68 . . Maximum Alert Level 1 | . . 1 . . Low Security (%) 91 | 100 100 85 . 100 Level 1 8 | . . 14 . . Level 2 . | . . . . . Level 3 . | . . . . . Level 4 . | . . . . . Level 5 . | . . . . . High Security . | . . . . . Max Security . | . . . . . Squads Dispatched 2 | . 1 1 . . Investigation . | . . . . . Extermination . | . . . . . Reinforcement 1 | . 1 . . . Assault 1 | . . 1 . . Garrison . | . . . . . Intercept . | . . . . . Construction Impeded . | . . . . . Haulers Reinforced . | . . . . . Stealth | -11 -10 -10 -10 -9 --------- Run | Scr Mat Min Exi Min Distress Signals 5 | . 3 2 . . Communications Jammed . | . . . . . Distress Signals . | . . . . . Times Spotted 38 | . 11 20 . 7 Peak Tracking Total 6 | . 5 6 . 6 Tactical Retreats 4 | . 2 2 . . Traps | -11 -10 -10 -10 -9 ------- Run | Scr Mat Min Exi Min Traps Triggered 1 | . 1 . . . Indirectly . | . . . . . Trap Hack Attempts . | . . . . . Triggered . | . . . . . Disarmed . | . . . . . Reprogrammed . | . . . . . Reused . | . . . . . Traps Extracted . | . . . . . Installed . | . . . . . Triggered . | . . . . . Machines | -11 -10 -10 -10 -9 ---------- Run | Scr Mat Min Exi Min Machines Disabled 1 | . . 1 . . Max in Single Turn 1 | . . 1 . . Machines Sabotaged . | . . . . . Garrisons Compromised . | . . . . . Overloaded Fab Kills . | . . . . . Fab Network Shutdowns . | . . . . . Hacking | -11 -10 -10 -10 -9 --------- Run | Scr Mat Min Exi Min Machines Accessed 11 | . 8 . 3 . Terminals 5 | . 5 . . . Fabricators . | . . . . . Repair Stations 1 | . 1 . . . Recycling Units 2 | . 2 . . . Scanalyzers . | . . . . . Garrison Access . | . . . . . Total Hacks 65 | . 24 . 41 . Successful 58 | . 17 . 41 . Failed 7 | . 7 . . . Catastrophic . | . . . . . Database Lockouts . | . . . . . Manual 29 | . 25 . 4 . Terminals 18 | . 18 . . . Fabricators . | . . . . . Repair Stations 3 | . 3 . . . Recycling Units 3 | . 3 . . . Scanalyzers . | . . . . . Garrison Access . | . . . . . Terminal Hacks 46 | . 5 . 41 . Record 41 | . . . 41 . Robot Analysis 3 | . 3 . . . Branch Access Points 1 | . 1 . . . Locate Traps 1 | . 1 . . . Fabricator Hacks . | . . . . . Repair Station Hacks 2 | . 2 . . . Scan Component 1 | . 1 . . . Repair 1 | . 1 . . . Recycling Unit Hacks . | . . . . . Scanalyzer . | . . . . . Garrison Access Hacks . | . . . . . Unauthorized Hacks 10 | . 10 . . . Terminals 7 | . 7 . . . Assimilate 3 | . 3 . . . Botnet 2 | . 2 . . . Operators 2 | . 2 . . . Fabricators . | . . . . . Repair Stations 1 | . 1 . . . Mechanics 1 | . 1 . . . Recycling Units 2 | . 2 . . . Recyclers 2 | . 2 . . . Scanalyzers . | . . . . . Garrison Access . | . . . . . Data Cores Recovered . | . . . . . Used . | . . . . . Hacking Detections 3 | . 3 . . . Full Trace Events . | . . . . . Feedback Events . | . . . . . Feedback Blocked . | . . . . . Robot Schematics Acquired . | . . . . . Robots Built . | . . . . . Matter . | . . . . . Time . | . . . . . Total Robot Build Rating . | . . . . . Part Schematics Acquired . | . . . . . Parts Built . | . . . . . Matter . | . . . . . Time . | . . . . . Total Part Build Rating . | . . . . . Parts Repaired 1 | . 1 . . . Time 26 | . 26 . . . Parts Recycled . | . . . . . Recycled Matter . | . . . . . Retrieved Matter . | . . . . . Retrieved Components . | . . . . . Parts Scanalyzed . | . . . . . Part Schematics Acquired . | . . . . . Parts Damaged . | . . . . . Bothacking | -11 -10 -10 -10 -9 ------------ Run | Scr Mat Min Exi Min Used RIF Installer . | . . . . . Robots Hacked . | . . . . . Non-combat . | . . . . . Combat . | . . . . . Robot Hacks Applied . | . . . . . Relay Couplers Released . | . . . . . Robots Rewired . | . . . . . Allies Hacked . | . . . . . Hacks Repelled . | . . . . . Allies | -11 -10 -10 -10 -9 -------- Run | Scr Mat Min Exi Min Total Allies 3 | . . 3 . . Largest Group 2 | . . 2 1 1 Highest-Rated Group 59 | . . 59 31 31 Highest-Rated Ally 31 | . . 31 31 31 Total Orders . | . . . . . Ally Attacks 36 | . . 24 9 3 Total Damage 487 | . . 363 103 21 Kills 10 | . . 9 . 1 Allies Corrupted . | . . . . . Allies Melted . | . . . . . Intel | -11 -10 -10 -10 -9 ------- Run | Scr Mat Min Exi Min Robot Analysis Total 3 | . 3 . . . Derelict Logs Recovered 1 | . . 1 . . Drone Launches . | . . . . . Drone Recoveries . | . . . . . Exploration | -11 -10 -10 -10 -9 ------------- Run | Scr Mat Min Exi Min Turns Passed 2777 | 24 589 988 1148 28 Spaces Moved 1427 | 14 404 412 585 12 Core . | . . . . . Treads 833 | . 80 156 585 12 Legs . | . . . . . Wheels 594 | 14 324 256 . . Hover . | . . . . . Flight . | . . . . . Fastest Speed 80 | 80 90 110 180 180 Average Speed 150 | 85 110 140 186 180 Slowest Speed 200 | 90 180 200 200 180 Overloaded Moves . | . . . . . Propulsion Burnouts . | . . . . . Robots Hopped . | . . . . . Cave-ins Triggered . | . . . . . Exploration Rate (%) 46 | 3 65 62 91 9 Regions Visited 4 Branch Regions 3 Pre-discovered Areas 1 | . . . 1 . Known Exits Taken 1 | . 1 . . . Unknown Exits Taken 3 | 1 . 1 1 . Scrap Searched 2 | . . 2 . . Spaces Dug . | . . . . . Terrain Destroyed 2 | . . 2 . . Melee . | . . . . . Projectile . | . . . . . AOE 2 | . . 2 . . Actions | -11 -10 -10 -10 -9 --------- Run | Scr Mat Min Exi Min Total 1929 | 19 519 752 624 15 Wait 350 | . 79 271 . . Move 1423 | 13 403 411 584 12 Hop . | . . . . . Pick Up 28 | . 9 11 8 . Fast Attach 5 | 1 2 . 2 . Attach 10 | . 2 7 1 . Detach . | . . . . . Swap 11 | 2 2 3 4 . Drop 16 | . 7 . 9 . Fire 80 | 3 15 48 11 3 Melee . | . . . . . Ram . | . . . . . Kick . | . . . . . Crush 1 | . . 1 . . Escape Stasis . | . . . . . Rewire 5 | . . . 5 . Trap . | . . . . . Miscellaneous . | . . . . . Route ------- -11/Scrapyard -10/Materials (discovered 4 exits: [*Mat x2] / *Min x2) -10/Mines (discovered 3 exits: [*Mat x2] / *Exi) -10/Exiles (discovered 2 exits: [*Min x2]) -9/Mines History --------- Turn | Location | Event 13 | -11/Scrapyard | Discovered new exit (range 3) 25 | -11/Scrapyard | Entered Materials 116 | -10/Materials | Discovered new exit (range 3) 142 | -10/Materials | Discovered new exit (range 16) 315 | -10/Materials | Build established: Mutant 348 | -10/Materials | Identified exit to Mines 400 | -10/Materials | Repaired Lgt. Treads 500 | -10/Materials | Discovered new exit (range 7) 614 | -10/Materials | Entered Mines 618 | -10/Mines | Learned Materials emergency access door positions 713 | -10/Mines | Met a Derelict bent on vengeance 771 | -10/Mines | Discovered new exit (range 10) 837 | -10/Mines | Excavation squad dispatched 837 | -10/Mines | A large section of the Mines collapsed 1087 | -10/Mines | Excavation squad dispatched 1220 | -10/Mines | Core integrity fell below 50% 1273 | -10/Mines | Lost 4 parts (1p1n2w) 1337 | -10/Mines | Excavation squad dispatched 1390 | -10/Mines | Discovered new exit (range 9) 1440 | -10/Mines | Core integrity fell below 20% 1446 | -10/Mines | Met a Derelict testing a Signal Generator 1590 | -10/Mines | Deemed a non-threat by the Exiles lab entrance 1590 | -10/Mines | Discovered new exit (range 5) 1602 | -10/Mines | Entered Exiles 1602 | -10/Exiles | Found Exiles lab destroyed 1602 | -10/Exiles | Accompanied by 1 ally 1632 | -10/Exiles | Discovered new exit (range 15) 2234 | -10/Exiles | Learned location of Zion (-7) 2309 | -10/Exiles | Discovered new exit (range 14) 2750 | -10/Exiles | Entered Mines 2750 | -9/Mines | Accompanied by 1 ally 2751 | -9/Mines | Assembled infested the area 2778 | -9/Mines | Destroyed by as-42073 with Assembled Maul Last Messages --------------- >>Record "DEC-099/Infernogeddon Engine" [REDACTED] ** HEX: No. 02559_ Connecting with HEX's Terminal... 02574_ Attempting to rewire as-75589. 02574_ as-75589 cannot be rewired. 02575_ Attempting to rewire as-75589. 02575_ as-75589 cannot be rewired. 02576_ Attempting to rewire as-75589. 02576_ as-75589 cannot be rewired. 02577_ Attempting to rewire as-75589. 02577_ as-75589 cannot be rewired. 02578_ Attempting to rewire as-75589. 02578_ as-75589 cannot be rewired. 02584_ Connecting with EX-Vault Access... LOCATION=UNKNOWN GOAL=ESCAPE 02751_ ALERT: Infestation in the mines, dispatching Demolisher response squad. 02772_ as-38451 destroyed. 02773_ QG-KXX(g) destroyed. Map ----- +----------------------------------------------------+ | | | | | | | ????????????????????????????????? | | ????????????????????????????????? | | ????????????????????????????????? | | ?????????????????????????#??????? | | ??????????????????????? #?????? | | ??????????????????????? ?????? | | ??????????????????????? ?????? | | ??????????????????????? ?????? | | ???????????????????????# #????? | | ???????????????????????# ##??? | | ???????????????????????# ###? | | ???????????????????????# #? | | ???????????????????????+ #? | | ???????????????????????+ #? | | ???????????????????????? ?? | | ????????????????????????? #?? | | ?????????????????????????# #?? | | ???????????????????####### #?? | | ???????????????????# #?? | | ???????????# ????# ##### #?? | | ???????????# ##??????## #?? | | ??????????# ###### #?? | | ?????????# *%a@ #?? | | ???????? % [a #?? | | ???????????## a #######?? | | ????????????# a ##???????? | | ??????????$ aa ##?????????? | | ?????????? ## ######???????????? | | ????????????#???????????????????? | | ????????????????????????????????? | | ????????????????????????????????? | | ????????????????????????????????? | | ????????????????????????????????? | | ????????????????????????????????? | | ????????????????????????????????? | | ????????????????????????????????? | | ????????????????????????????????? | | ????????????????????????????????? | | ????????????????????????????????? | | ????????????????????????????????? | | ????????????????????????????????? | | ????????????????????????????????? | | ????????????????????????????????? | | ????????????????????????????????? | | ????????????????????????????????? | | ????????????????????????????????? | | ????????????????????????????????? | +----------------------------------------------------+ Best States ------------- Heat Dissipation 35 Energy Generation 10 Energy Capacity 250 Matter Stores 303 Matter Capacity 400 Sight Range 16 Terrain Scan Density 135 Weapon Shielding 33 Evasion (%) 42 Recoil Reduction 2 Item Schematics ----------------- None Robot Schematics ------------------ None Fabricated ------------ Nothing Alien Tech Used ----------------- None Achievements -------------- None Challenges ------------ None Game ------ Seed AerolevTacticalWings Manual? 0 Play Time 00:28:24 Cumulative 7.9 hours Start 2020.07.11 @ 18:31:41 End 2020.07.11 @ 18:59:54 Sessions 1 Manual Loads 0 Difficulty Rogue Special Mode None Game No. 17 Rogue 17 Adventurer 0 Explorer 0 Win Type - Total 0 Types 0/0/0/0/0/0/0 Lore% 18 Gallery% 12 Achievement% 14 Wizard Run 0 Options --------- ASCII 0 Keyboard 0 Movement Mouse Keybinds 0 Fullscreen 2 Font 24/Terminus Map View 76x50 Tactical HUD 1 Map Filters NONE Filters NONE Steam 1 RUN: 86e267b1-996d-46fc-97e1-4471c9159d15